Cogmind - Beta 17 @@@ ROGUE MODE // 2026.07.16 @ 09:04:02 // Winter2019/RPGLIKE Player: Gallgagger Result: Self-destructed Performance ------------- Evolutions (1) 500 Regions Visited (6) 1200 Robots Destroyed (0) 0 Value Destroyed (0) 0 Prototype IDs (24) 480 Alien Tech Used (0) 0 Bonus (500) 500 TOTAL SCORE: 2680 Bonus ------- Pacifist 200 Aligned with FarCom 300 Cogmind --------- Core Integrity 491/600 Matter 205/300 Energy 99/100 System Corruption 1% Temperature Cool (0) Movement Core (50) Location -8/Mines Parts ------- > --- POWER (1) -------- (None) > --- PROPULSION (1) --- (None) > --- UTILITY (1) ------ Experimental Sensor Array > --- WEAPON (1) ------- Small Laser (fused) > --- INVENTORY (0) ---- (None) Peak State ------------ > --- POWER ------------ (None) > --- PROPULSION ------- (None) > --- UTILITY ---------- Experimental Sensor Array > --- WEAPON ----------- Small Laser > --- INVENTORY -------- (None) [Rating: 10] Favorites ----------- Power None Propulsion None Utility Experimental Sensor Array Device Experimental Sensor Array Weapon Small Laser Energy Gun Small Laser Build | -11 -10 -10 -9 -9 -9 -8 ------- Run | Yrd Mat Min Mat Min Exi Min Slots Evolved . | . . . . . . . Power . | . . . . . . . Propulsion . | . . . . . . . Utility . | . . . . . . . Weapon . | . . . . . . . Parts Attached 2 | 1 . 1 . . . . Power . | . . . . . . . Engine . | . . . . . . . Core . | . . . . . . . Reactor . | . . . . . . . Propulsion . | . . . . . . . Treads . | . . . . . . . Leg . | . . . . . . . Wheel . | . . . . . . . Hover . | . . . . . . . Flight . | . . . . . . . Utility 1 | . . 1 . . . . Device 1 | . . 1 . . . . Storage . | . . . . . . . Processor . | . . . . . . . Hackware . | . . . . . . . Protection . | . . . . . . . Artifact . | . . . . . . . Weapon 1 | 1 . . . . . . Energy Gun 1 | 1 . . . . . . Energy Cannon . | . . . . . . . Ballistic Gun . | . . . . . . . Ballistic Cannon . | . . . . . . . Launcher . | . . . . . . . Special Weapon . | . . . . . . . Impact Weapon . | . . . . . . . Slashing Weapon . | . . . . . . . Piercing Weapon . | . . . . . . . Special Melee Weapon . | . . . . . . . Unidentified Prototypes 1 | . . 1 . . . . Parts Lost . | . . . . . . . Power . | . . . . . . . Propulsion . | . . . . . . . Utility . | . . . . . . . Weapon . | . . . . . . . Highest Loss Streak . | . . . . . . . To Critical Strikes . | . . . . . . . Average Backups . | . . . . . . . Power . | . . . . . . . Propulsion . | . . . . . . . Utility . | . . . . . . . Weapon . | . . . . . . . Tool/Special . | . . . . . . . Unused Backups . | . . . . . . . Power . | . . . . . . . Propulsion . | . . . . . . . Utility . | . . . . . . . Weapon . | . . . . . . . Tool/Special . | . . . . . . . Average Slot Usage (%) 46 | . 25 48 50 50 50 50 Device 21 | . . 23 25 25 25 25 Energy Gun 25 | . 25 25 25 25 25 25 Peak Build Rating 10 | 1 1 10 10 10 10 10 Average Rating 8 | . 1 9 10 10 10 10 On Entrance 6 | . 1 1 10 10 10 10 Avg Prop Armor Cover (%) . | . . . . . . . Naked Turns . | . . . . . . . Heaviest Build 2 | 1 1 2 2 2 2 2 Greatest Support 3 | 3 3 3 3 3 3 3 Greatest Overweight (x) . | . . . . . . . Average Overweight (x) . | . . . . . . . Largest Inventory Capacity . | . . . . . . . Average Capacity . | . . . . . . . Most Carried . | . . . . . . . Average Carried . | . . . . . . . Final Capacity . | . . . . . . . Final Carried . | . . . . . . . Class Distribution -------------------- 100% | Mutant Dominant Class ---------------- Mutant | -10/Materials Mutant | -10/Mines Mutant | -9/Materials Mutant | -9/Mines Mutant | -9/Exiles Mutant | -8/Mines Resources | -11 -10 -10 -9 -9 -9 -8 ----------- Run | Yrd Mat Min Mat Min Exi Min Matter Collected 117 | 72 . 45 . . . . Remotely . | . . . . . . . Salvage Created . | . . . . . . . Parts . | . . . . . . . Haulers Intercepted . | . . . . . . . Recyclers Shooed . | . . . . . . . Parts Field Recycled . | . . . . . . . Retrieved Matter . | . . . . . . . Parts Self-Destructed . | . . . . . . . Prevented . | . . . . . . . Parts Restored . | . . . . . . . Kills | -11 -10 -10 -9 -9 -9 -8 ------- Run | Yrd Mat Min Mat Min Exi Min Combat Hostiles Destroyed . | . . . . . . . Classes Destroyed . | . . . . . . . Best Kill Streak . | . . . . . . . Combat Bots Only . | . . . . . . . Max Kills in Single Turn . | . . . . . . . Gunslinging . | . . . . . . . Exploded . | . . . . . . . Melee . | . . . . . . . Uniques/NPCs Destroyed . | . . . . . . . Combat | -11 -10 -10 -9 -9 -9 -8 -------- Run | Yrd Mat Min Mat Min Exi Min Hostile Shots Fired 13 | . 5 1 3 . . 4 Missed 5 | . 2 . 3 . . . Hits 8 | . 3 1 . . . 4 Projectile 8 | . 3 1 . . . 4 Damage Taken 126 | . 60 17 . . 18 31 Core 109 | . 58 13 . . 14 24 Absorbed by Shields . | . . . . . . . Redirected to Core 59 | . 8 13 . . 14 24 Core Remaining (%) 94 | 100 . 88 . . . . Volleys Fired . | . . . . . . . Largest . | . . . . . . . Hottest . | . . . . . . . Shots Fired . | . . . . . . . Gun . | . . . . . . . Cannon . | . . . . . . . Launcher . | . . . . . . . Special . | . . . . . . . Kinetic . | . . . . . . . Thermal . | . . . . . . . Explosive . | . . . . . . . Electromagnetic . | . . . . . . . Robot Hit Streak . | . . . . . . . Robot Miss Streak . | . . . . . . . Penetration Max . | . . . . . . . Secondary Targets . | . . . . . . . Shots Hit Robots . | . . . . . . . Core Hits . | . . . . . . . Critical Kills . | . . . . . . . Critical Parts Destroyed . | . . . . . . . Critical Strikes . | . . . . . . . Melee Attacks . | . . . . . . . Impact . | . . . . . . . Slashing . | . . . . . . . Piercing . | . . . . . . . Sneak Attacks . | . . . . . . . Combat Hostiles . | . . . . . . . Follow-up Attacks . | . . . . . . . Damage Inflicted 23 | . 4 1 . . 18 . Guns . | . . . . . . . Cannons . | . . . . . . . Explosions . | . . . . . . . Melee . | . . . . . . . Ramming 23 | . 4 1 . . 18 . Kinetic . | . . . . . . . Thermal . | . . . . . . . Explosive . | . . . . . . . Electromagnetic . | . . . . . . . Impact . | . . . . . . . Slashing . | . . . . . . . Piercing . | . . . . . . . Highest Corruption 2 | . 2 2 1 1 1 1 Average Corruption 1 | . 2 2 1 1 1 1 Corruption Purged . | . . . . . . . Corruption Blocked . | . . . . . . . Effects 5 | . . 3 . . 1 1 Message Errors 2 | . . 1 . . . 1 Matter Fused 1 | . . 1 . . . . Parts Fused 1 | . . . . . 1 . Data Loss (major) 1 | . . 1 . . . . Overload Shots . | . . . . . . . Overflow Damage . | . . . . . . . Projectiles . | . . . . . . . Explosions . | . . . . . . . Melee . | . . . . . . . Knockbacks . | . . . . . . . Impact . | . . . . . . . Kinetic . | . . . . . . . Secondary . | . . . . . . . Self-Inflicted Damage 19 | . 1 . . . 18 . Shots . | . . . . . . . Rammed 5 | . 3 2 . . . . Targets Rammed 5 | . 3 2 . . . . Kicked . | . . . . . . . Crushed . | . . . . . . . Highest Temperature . | . . . . . . . Average Temperature . | . . . . . . . Received Heat Transfer 30 | . 21 9 . . . . Siege Activations . | . . . . . . . Martial Activations . | . . . . . . . Shielding Activations . | . . . . . . . Robots Disrupted . | . . . . . . . Combat Hostiles . | . . . . . . . Robots Corrupted . | . . . . . . . Combat Hostiles . | . . . . . . . Parts Fried . | . . . . . . . Impact Corruptions . | . . . . . . . Robots Melted . | . . . . . . . Combat Hostiles . | . . . . . . . Parts Melted . | . . . . . . . Heat Transferred . | . . . . . . . Parts Sabotaged . | . . . . . . . Parts Stolen . | . . . . . . . Parts Stripped . | . . . . . . . Power Chain Reactions . | . . . . . . . Alert | -11 -10 -10 -9 -9 -9 -8 ------- Run | Yrd Mat Min Mat Min Exi Min Maximum Alert Level . | . . . . . . . Low Security (%) 100 | 100 100 100 100 100 . 100 Level 1 . | . . . . . . . Level 2 . | . . . . . . . Level 3 . | . . . . . . . Level 4 . | . . . . . . . Level 5 . | . . . . . . . High Security . | . . . . . . . Max Security . | . . . . . . . Peak Influence 30 | . 7 30 20 7 . . Initial 7 | . . . . 7 . . Average 3 | . 1 5 4 3 . . Influence Increases 57 | . 7 30 20 . . . Destroy 0b10 Robot/C 20 | . . . 20 . . . Successful Hack 7 | . 7 . . . . . Lose Combat Pursuer 30 | . . 30 . . . . Influence Decreases 57 | . 7 30 . 20 . . Entered New Map 13 | . . . . 13 . . Time Decay 44 | . 7 30 . 7 . . Squads Dispatched . | . . . . . . . Investigation . | . . . . . . . Extermination . | . . . . . . . Reinforcement . | . . . . . . . Assault . | . . . . . . . Garrison . | . . . . . . . Intercept . | . . . . . . . Searches Triggered . | . . . . . . . Construction Impeded . | . . . . . . . Haulers Reinforced . | . . . . . . . Active Scanning Responses . | . . . . . . . Cargo Convoy Interrupts . | . . . . . . . Stealth | -11 -10 -10 -9 -9 -9 -8 --------- Run | Yrd Mat Min Mat Min Exi Min Distress Signals 1 | . 1 . . . . . Communications Jammed . | . . . . . . . Distress Signals . | . . . . . . . Times Spotted 9 | . 2 2 4 . . 1 Peak Tracking Total 9 | . 2 2 4 . 9 1 Tactical Retreats 1 | . . 1 . . . . Traps | -11 -10 -10 -9 -9 -9 -8 ------- Run | Yrd Mat Min Mat Min Exi Min Traps Triggered 2 | . 2 . . . . . Indirectly . | . . . . . . . Trap Hack Attempts . | . . . . . . . Triggered . | . . . . . . . Disarmed . | . . . . . . . Reprogrammed . | . . . . . . . Reused . | . . . . . . . Traps Extracted . | . . . . . . . Installed . | . . . . . . . Triggered . | . . . . . . . Machines | -11 -10 -10 -9 -9 -9 -8 ---------- Run | Yrd Mat Min Mat Min Exi Min Machines Disabled 1 | . . . . . 1 . Max in Single Turn 1 | . . . . . 1 . Machines Repaired . | . . . . . . . Machines Dismantled . | . . . . . . . Machines Sabotaged . | . . . . . . . Overloaded Fab Kills . | . . . . . . . Hacking | -11 -10 -10 -9 -9 -9 -8 --------- Run | Yrd Mat Min Mat Min Exi Min Machines Accessed 3 | . 1 . 1 . 1 . Terminals 2 | . 1 . 1 . . . Fabricators . | . . . . . . . Repair Stations . | . . . . . . . Recycling Units . | . . . . . . . Scanalyzers . | . . . . . . . Garrison Access . | . . . . . . . Total Hacks 9 | . 3 . 5 . 1 . Successful 2 | . 1 . . . 1 . Failed 7 | . 2 . 5 . . . Catastrophic 3 | . 1 . 2 . . . Database Lockouts . | . . . . . . . Manual 9 | . 3 . 5 . 1 . Terminals 8 | . 3 . 5 . . . Fabricators . | . . . . . . . Repair Stations . | . . . . . . . Recycling Units . | . . . . . . . Scanalyzers . | . . . . . . . Garrison Access . | . . . . . . . Terminal Hacks 2 | . 1 . . . 1 . Branch Access Points 1 | . 1 . . . . . Proto ID Catalog 1 | . . . . . 1 . Fabricator Hacks . | . . . . . . . Repair Station Hacks . | . . . . . . . Recycling Unit Hacks . | . . . . . . . Scanalyzer . | . . . . . . . Garrison Access Hacks . | . . . . . . . Unauthorized Hacks . | . . . . . . . Terminals . | . . . . . . . Fabricators . | . . . . . . . Repair Stations . | . . . . . . . Recycling Units . | . . . . . . . Scanalyzers . | . . . . . . . Garrison Access . | . . . . . . . Data Cores Recovered . | . . . . . . . Used . | . . . . . . . Hacking Detections 2 | . 1 . 1 . . . Full Trace Events 1 | . . . 1 . . . Feedback Events 1 | . . . 1 . . . Corruption 1 | . . . 1 . . . Feedback Blocked . | . . . . . . . Robot Schematics Acquired . | . . . . . . . Robots Built . | . . . . . . . Authchips . | . . . . . . . Time . | . . . . . . . Total Robot Build Rating . | . . . . . . . Part Schematics Acquired . | . . . . . . . Parts Built . | . . . . . . . Authchips . | . . . . . . . Time . | . . . . . . . Total Part Build Rating . | . . . . . . . Part Studies Acquired . | . . . . . . . Parts Repaired . | . . . . . . . Time . | . . . . . . . Parts Recycled . | . . . . . . . Recycled Matter . | . . . . . . . Retrieved Matter . | . . . . . . . Retrieved Components . | . . . . . . . Parts Scanalyzed . | . . . . . . . Part Schematics Acquired . | . . . . . . . Parts Damaged . | . . . . . . . Bothacking | -11 -10 -10 -9 -9 -9 -8 ------------ Run | Yrd Mat Min Mat Min Exi Min Used RIF Installer . | . . . . . . . Robots Hacked . | . . . . . . . Non-combat . | . . . . . . . Combat . | . . . . . . . Robot Hacks Applied . | . . . . . . . Relay Couplers Released . | . . . . . . . Fabnet Peak Effective % . | . . . . . . . Robots Rewired . | . . . . . . . Allies Hacked . | . . . . . . . Hacks Repelled . | . . . . . . . Allies | -11 -10 -10 -9 -9 -9 -8 -------- Run | Yrd Mat Min Mat Min Exi Min Total Allies 3 | . . 3 . . . . Largest Group 3 | . . 3 3 . . . Highest-Rated Group 40 | . . 40 40 . . . Highest-Rated Ally 16 | . . 16 16 . . . Total Orders . | . . . . . . . Ally Attacks 6 | . . . 6 . . . Total Damage 76 | . . . 76 . . . Kills 1 | . . . 1 . . . Allies Corrupted . | . . . . . . . Allies Melted . | . . . . . . . Intel | -11 -10 -10 -9 -9 -9 -8 ------- Run | Yrd Mat Min Mat Min Exi Min Active Infowar (turns) 316 | . . 149 33 44 90 . Sensors 316 | . . 149 33 44 90 . Robot Analysis Total . | . . . . . . . Derelict Logs Recovered 2 | . . 2 . . . . Drone Launches . | . . . . . . . Drone Recoveries . | . . . . . . . Exploration | -11 -10 -10 -9 -9 -9 -8 ------------- Run | Yrd Mat Min Mat Min Exi Min Turns Passed 463 | 13 55 190 33 44 109 19 Spaces Moved 845 | 22 103 316 65 87 215 37 Core 845 | 22 103 316 65 87 215 37 Treads . | . . . . . . . Legs . | . . . . . . . Wheels . | . . . . . . . Hover . | . . . . . . . Flight . | . . . . . . . Fastest Speed 50 | 50 50 50 50 50 50 50 Average Speed 50 | 50 50 50 50 50 50 50 Slowest Speed 50 | 50 50 50 50 50 50 50 Overloaded Moves . | . . . . . . . Propulsion Burnouts . | . . . . . . . Robots Hopped . | . . . . . . . Potential Cave-ins . | . . . . . . . Cave-ins Triggered . | . . . . . . . Exploration Rate (%) 32 | 3 28 65 18 33 62 15 Regions Visited 6 Branch Regions 4 Pre-discovered Areas . | . . . . . . . Known Exits Taken 1 | . 1 . . . . . Unknown Exits Taken 5 | 1 . 1 1 1 1 . Scrap Searched 2 | . . 1 . . . 1 Spaces Dug . | . . . . . . . Terrain Destroyed . | . . . . . . . Melee . | . . . . . . . Projectile . | . . . . . . . AOE . | . . . . . . . Terrain Rammed 1 | . . . . . 1 . Walls Destroyed . | . . . . . . . Machines Disabled 1 | . . . . . 1 . Actions | -11 -10 -10 -9 -9 -9 -8 --------- Run | Yrd Mat Min Mat Min Exi Min Total 875 | 22 105 346 64 86 215 37 Wait 28 | . . 28 . . . . Move 839 | 21 102 315 64 86 214 37 Hop . | . . . . . . . Pick Up . | . . . . . . . Fast Attach 2 | 1 . 1 . . . . Attach . | . . . . . . . Detach . | . . . . . . . Swap . | . . . . . . . Drop . | . . . . . . . Fire . | . . . . . . . Melee . | . . . . . . . Ram 6 | . 3 2 . . 1 . Kick . | . . . . . . . Crush . | . . . . . . . Escape Stasis . | . . . . . . . Rewire . | . . . . . . . Trap . | . . . . . . . Miscellaneous . | . . . . . . . Route ------- -11/Scrapyard -10/Materials -10/Mines (discovered 2 exits: *Mat / Sub) -9/Materials -9/Mines (discovered 3 exits: [*Mat] / *Exi / [*Zio]) -9/Exiles (discovered 2 exits: [*Min x2]) -8/Mines History --------- Turn | Location | Event 6 | -11/Scrapyard | Discovered new exit (range 15) 14 | -11/Scrapyard | Entered Materials 19 | -10/Materials | Identified exit to Mines 69 | -10/Materials | Entered Mines 74 | -10/Mines | Found a damaged Exp. Sensor Array with a note attached 75 | -10/Mines | Met a Derelict bent on vengeance 75 | -10/Mines | Found Prototype Device 75 | -10/Mines | Identified Exp. Sensor Array 97 | -10/Mines | A weapon hastily lodged in a ceiling crevice suddenly fell to the ground 103 | -10/Mines | Learned Materials non-interactive machine intel 144 | -10/Mines | Identified exit to Subcaves 204 | -10/Mines | Assisted by bots powering up and referring to "LRC-V3" 225 | -10/Mines | Discovered new exit (range 11) 259 | -10/Mines | Entered Materials 259 | -9/Materials | Accompanied by 3 allies 260 | -9/Materials | Loaded intel: 36 non-interactive machine locations 261 | -9/Materials | Reached level 2 289 | -9/Materials | Discovered new exit (range 6) 292 | -9/Materials | Entered Mines 305 | -9/Mines | Build established: Mutant 311 | -9/Mines | A Derelict revealed a hidden shortcut to a safe place 317 | -9/Mines | Discovered new exit (range 12) 333 | -9/Mines | Deemed a non-threat by the Exiles lab entrance 334 | -9/Mines | Discovered new exit (range 5) 336 | -9/Mines | Entered Exiles 343 | -9/Exiles | Discovered new exit (range 15) 350 | -9/Exiles | Met 8R-AWN 357 | -9/Exiles | Met EX-HEX 372 | -9/Exiles | Met EX-BIN 379 | -9/Exiles | Reached level 3 379 | -9/Exiles | Aligned with FarCom system 379 | -9/Exiles | Given EX-Vault access code 391 | -9/Exiles | Opened EX-Vault 404 | -9/Exiles | Warned to stay clear of 0b10 Research branches 421 | -9/Exiles | Met EX-DEC 427 | -9/Exiles | Attacked by the Exiles 439 | -9/Exiles | Discovered new exit (range 14) 445 | -9/Exiles | Entered Mines 464 | -8/Mines | Self-destructed Last Messages --------------- EX-DEC: Ah I see we have a visitor. One wrong move in here and I'll invert your atomic chain! 00426_ Slammed into Machine. 00426_ Machine disabled. 00426_ Destabilizing: System interference. 00426_ Exp. Sensor Array temporarily disabled. 00426_ Destabilizing: System interference. 00426_ Sml. Laser temporarily disabled. 00427_ EXILES: Hostile robot within lab perimeter. Defensive protocols time, folks! 00439_ EXIT=FOUND LOCATION=UNKNOWN GOAL=ESCAPE 00446_ Penetrated by Slug. 00446_ Core Extractor disabled. 00447_ TF:E8WI|JSXPH0RFGP6R FGBHTFRSD:X 00463_ Searching scrap... 00463_ Found Lrg. Matter Pod. 00463_ Found Carbon-fiber Leg. 00463_ Found 33 Matter. Map ----- +----------------------------------------------------+ | ????????????????????????????????????? | | ????????????????????????????????????? | | ????????????????????????????????????? | | ????????????????????????????????????? | | ????????????????????????????????????? | | ????????????????????????????????????? | | ????????????????????????????????????? | | ????????????????????????????????????? | | ????????????????????????????????????? | | ????????????????????????????????????? | | ????????????????????????????????????? | | ????????????????????????????????????? | | ????????????????????????????????????? | | ????????????????????????????????????? | | ????????????????????????????????????? | | ????????????????????????????????????? | | ????????????????????????????????????? | | ?????????????????? ?????????????????? | | ????????????????? ""???#????????????? | | ???????????????? """ ##???????????? | | ???????????????? """ ????????????? | | ???????????????? ??????????????? | | ??????????????? #???????????????? | | ??????????????? ?????????????????? | | ???????????#### #??????????????????? | | ???????????#@ #??????????????????? | | ???????????# = #????# ?????????? | | ???????????#% ####???? #?????????? | | ???????????#! #?????? #?????????? | | ???????????# #?????? #?????????? | | ???????????# #????? #?????????? | | ???????????# #????? #?????????? | | ???????????# #???? #??????????? | | ???????????# #???# #???????????? | | ???????????# #??# #????????????? | | ???????????# ### ##???????????? | | ???????????# ## #???????????? | | ??????###### #???????????? | | ??????# #????????????? | | ??????# #????????????? | | ??????# ##### #????????????? | | ??????# #???# #????????????? | | ???#### #???# """" ##????????????? | | ???# #???# """" #?????????????? | | ???# #???# """" #?????????????? | | ???# #####???## ?????????????? | | ???# #????????### ?? #????????????? | | ?### #####???????# ???????????????? | | ?# #????????# ???????????????? | | ?# """#????????? ????????????????? | +----------------------------------------------------+ Best States ------------- Heat Dissipation 25 Energy Generation 5 Energy Capacity 100 Matter Stores 205 Matter Capacity 300 Sight Range 16 Robot Scan Range 20 Terrain Scan Density 10 Evasion (%) 50 Item Schematics ----------------- None Robot Schematics ------------------ None Fabricated ------------ Nothing Repaired ---------- Nothing Studied --------- None Alien Tech Used ----------------- None Achievements -------------- None Challenges ------------ None RPGLIKE | -11 -10 -10 -9 -9 -9 -8 --------- Run | Yrd Mat Min Mat Min Exi Min Levels Raised 2 | . . . 1 . 1 . XP Earned 6585 | 3000 35 600 1600 500 350 500 Upgrades . | . . . . . . . Protomatter Created . | . . . . . . . Protomatter Decayed . | . . . . . . . Game ------ Seed ZeronetShockCartridge Manual? 0 Play Time 00:02:51 Cumulative 667.6 hours Start 2026.07.16 @ 09:01:18 End 2026.07.16 @ 09:04:02 Sessions 1 Manual Loads 0 Difficulty Rogue Special Mode Winter2019/RPGLIKE Game No. 320 Rogue 166 Adventurer 154 Explorer 0 Win Type - Total 22 Types 4/5/4/3/2/1/0/1/1/1 Lore% 95 Gallery% 88 Achievement% 68 Wizard Run 0 Options --------- Layout 0 ASCII 0 Keyboard 0 Movement Numpad Keybinds 0 Fullscreen 2 Font 18/SmallcapsGlow Map View 76x50 Zoom Use 0% Tactical HUD 1 Map Filters NONE Filters NONE Steam 1 RUN: de5e1edc-384b-4745-b382-654c7ad50c1e